bitfinex/quotes_SOLUSD_20250902
["timestamp","ask_amount","ask_price","bid_price","bid_amount"]
[1756839827916,26.0,206.36,206.25,0.03]
[1756839828112,11.92561532,206.26,206.22,0.03]
[1756839828308,23.85123064,206.23,206.15,0.03]
[1756839828538,40.28,206.25,206.15,0.03]
[1756839828539,11.92561532,206.18,206.15,0.03]
[1756839828946,12.59561532,206.18,206.15,0.03]
[1756839829151,31.32566342,206.18,206.15,0.03]
[1756839829315,26.47553247,206.18,206.15,0.03]
[1756839829518,26.0,206.16,206.15,0.03]
[1756839829714,92.08553247,206.16,206.15,0.03]
[1756839830031,26.0,206.12,206.11,98.58945994]
[1756839830237,52.61769404,206.12,206.11,98.58945994]
[1756839830541,37.87330936,206.11,206.09,0.03]
[1756839830712,0.67,206.12,206.04,0.03]
[1756839830713,40.02207872,206.05,206.04,0.03]
[1756839830911,13.87991715,206.04,205.96,0.1]
[1756839831134,26.67,206.05,205.96,0.1]
[1756839831369,12.59561532,206.03,205.96,0.1]
[1756839831533,13.87991715,206.07,205.97,11.92561532]
[1756839831534,40.95,206.07,205.97,11.92561532]
[1756839831730,11.92561532,206.04,205.99,16.88000943]
[1756839831939,11.92561532,206.07,206.0,0.75]
[1756839832144,11.92561532,206.03,206.0,0.03]
[1756839832645,11.92561532,206.05,206.0,0.03]
[1756839832854,11.92561532,206.07,206.01,11.92561532]
[1756839833054,12.59561532,206.09,206.02,4.88372557]
[1756839833239,40.3,206.08,206.03,11.92561532]
[1756839833435,40.97,206.08,206.02,0.03]
[1756839833638,1.94509956,206.1,206.07,11.92561532]
[1756839833983,1.94509956,206.1,206.02,5.60388196]
[1756839833984,39.36561532,206.15,206.09,11.92561532]
[1756839834474,40.3,206.17,206.12,11.92561532]
[1756839834635,40.3,206.17,206.09,0.72]
[1756839834636,11.92561532,206.14,206.08,11.92561532]
[1756839834838,11.92561532,206.13,206.07,11.92561532]
[1756839835147,38.59561532,206.14,206.08,11.92561532]
[1756839835350,38.59561532,206.14,206.09,11.92561532]
[1756839835564,38.59561532,206.14,206.05,0.72]
[1756839835565,8.59139669,206.14,206.06,4.85277747]
[1756839835771,0.67,206.14,206.09,7.92139669]
[1756839836070,8.59139669,206.13,206.08,7.92139669]
[1756839836273,26.0,206.15,206.09,7.92139669]
[1756839836475,40.3,206.14,206.12,7.92139669]
[1756839836658,40.3,206.17,206.12,7.92139669]
[1756839836853,7.92139669,206.13,206.06,30.85277747]
[1756839837059,7.92139669,206.13,206.06,4.85277747]
[1756839837254,7.92139669,206.14,206.09,7.92139669]
[1756839837449,7.92139669,206.15,206.09,7.92139669]
[1756839837654,7.92139669,206.15,206.07,7.92139669]
[1756839837655,7.92139669,206.13,206.07,7.92139669]
[1756839837866,8.59139669,206.15,206.09,7.92139669]
[1756839838071,40.32,206.16,206.12,7.92139669]
[1756839838247,26.0,206.17,206.13,7.92139669]
[1756839838445,40.32,206.17,206.13,7.92139669]
[1756839838677,40.32,206.17,206.12,7.92139669]
[1756839838977,58.02,206.19,206.14,7.92139669]
[1756839838978,32.02,206.19,206.14,7.92139669]
[1756839839168,72.34,206.19,206.16,12.77199816]
[1756839839374,40.32,206.2,206.17,7.92139669]
[1756839839555,40.99,206.2,206.16,7.92139669]
[1756839839875,40.32,206.2,206.13,4.85130742]
[1756839840088,40.32,206.2,206.16,7.92139669]
[1756839840487,7.92139669,206.22,206.16,7.92139669]
[1756839840648,0.67,206.27,206.16,0.72]
[1756839840850,69.24139669,206.26,206.2,7.92139669]
[1756839841175,7.92139669,206.25,206.2,7.92139669]
[1756839841479,0.67,206.24,206.2,12.7708499]
[1756839841681,7.92139669,206.3,206.21,0.72]
[1756839841842,0.67,206.31,206.23,7.92139669]
[1756839841843,48.24139669,206.29,206.23,7.92139669]
[1756839842044,7.92139669,206.33,206.27,7.92139669]
[1756839842280,40.32,206.32,206.29,7.92139669]
[1756839842574,7.92139669,206.32,206.31,7.92139669]
[1756839842775,0.67,206.38,206.31,7.92139669]
[1756839842978,12.35,206.38,206.34,7.92139669]
[1756839843274,0.67,206.37,206.34,7.92139669]
[1756839843771,0.67,206.37,206.34,12.76767321]
[1756839844163,11.68,206.38,206.34,12.76767321]
[1756839844362,12.35,206.38,206.34,12.76767321]
[1756839844556,12.35,206.38,206.35,7.92139669]
[1756839844761,12.35,206.38,206.34,4.84627652]
[1756839845350,11.68,206.38,206.29,0.72]
[1756839845564,8.59139669,206.37,206.31,7.92139669]
[1756839845881,0.06,206.32,206.3,0.72]
[1756839846248,0.06,206.32,206.29,4.84754471]
[1756839846249,0.06,206.32,206.31,0.72]
[1756839846463,0.06,206.35,206.31,40.45775558]
[1756839846703,0.06,206.35,206.32,0.72]
[1756839846909,0.06,206.35,206.31,39.73775558]
[1756839846910,0.2,206.46,206.33,0.72]
[1756839847069,0.2,206.46,206.37,26.0]
[1756839847274,0.2,206.46,206.4,7.92139669]
[1756839847470,0.2,206.46,206.45,7.92139669]
[1756839848003,0.2,206.46,206.45,13.48518453]
[1756839848168,1e-08,206.46,206.45,13.48518453]
[1756839848572,1e-08,206.46,206.45,5.56378784]
[1756839848785,1e-08,206.46,206.45,13.48518453]
[1756839848989,1e-08,206.46,206.42,26.72]
[1756839849188,1e-08,206.46,206.45,7.92139669]
[1756839849571,1e-08,206.46,206.45,8.64139669]
[1756839849799,1e-08,206.46,206.45,7.92139669]
[1756839849982,1e-08,206.46,206.45,12.76518453]
[1756839850482,1e-08,206.46,206.45,13.48518453]
[1756839850892,1e-08,206.46,206.45,12.76518453]
[1756839851291,1e-08,206.46,206.42,0.72]
[1756839851492,1e-08,206.46,206.43,12.76551051]
[1756839852400,1e-08,206.46,206.45,7.92139669]
[1756839852878,1e-08,206.46,206.45,8.60139669]
[1756839853675,1e-08,206.46,206.45,0.68]
[1756839854000,1e-08,206.46,206.45,13.44518453]
[1756839854979,0.06,206.51,206.49,26.0]
[1756839855189,0.06,206.51,206.46,13.59559401]
[1756839855190,1e-08,206.51,206.5,7.92139669]
[1756839855396,0.69000001,206.51,206.48,7.92139669]
[1756839855597,0.69,206.5,206.45,4.84378784]
[1756839855771,1e-08,206.51,206.48,7.92139669]
[1756839856098,1e-08,206.51,206.5,4.84261501]
[1756839856472,0.69000001,206.51,206.5,4.84261501]
[1756839856672,0.69000001,206.51,206.48,4.84286042]
[1756839857104,0.69000001,206.51,206.48,12.76425711]
[1756839857485,0.69000001,206.51,206.48,4.84286042]
[1756839857799,7.92139669,206.49,206.44,12.76541916]
[1756839857970,0.69,206.5,206.44,12.76541916]
[1756839857971,7.92139669,206.5,206.44,12.76541916]
[1756839858170,7.9213967,206.51,206.46,7.92139669]
[1756839858395,1e-08,206.51,206.48,7.92139669]
[1756839858689,0.69000001,206.51,206.44,16.95407866]
[1756839859270,0.69000001,206.51,206.47,7.92139669]
[1756839859799,0.69000001,206.51,206.46,7.92139669]
[1756839860105,0.69000001,206.51,206.47,7.92139669]
[1756839860398,1e-08,206.51,206.47,7.92139669]
[1756839860972,0.69,206.5,206.44,16.95407866]
[1756839861181,0.69,206.5,206.46,7.92139669]
[1756839861368,8.61139669,206.5,206.44,16.95407866]
[1756839861573,8.61139669,206.5,206.44,12.76541916]
[1756839861771,0.69,206.5,206.44,12.76541916]
[1756839861975,1e-08,206.51,206.44,16.95407866]
[1756839862196,1e-08,206.51,206.45,0.68]
[1756839862782,1e-08,206.51,206.5,7.92139669]
[1756839863296,1e-08,206.51,206.5,8.60139669]
[1756839863885,1e-08,206.51,206.5,7.92139669]
[1756839864096,1e-08,206.51,206.5,12.7640117]
[1756839864474,1e-08,206.51,206.5,4.84261501]
[1756839864697,1e-08,206.51,206.5,12.7640117]
[1756839866676,1e-08,206.51,206.5,13.4440117]
[1756839866903,0.06,206.53,206.5,13.4440117]
[1756839866904,1e-08,206.53,206.52,7.92139669]
[1756839867107,1e-08,206.53,206.51,0.68]
[1756839867278,1e-08,206.53,206.52,7.92139669]
[1756839867482,1e-08,206.53,206.52,8.60139669]
[1756839867803,1e-08,206.53,206.52,0.68]
[1756839868117,1e-08,206.53,206.52,13.44354272]
[1756839869081,0.69,206.62,206.52,13.44354272]
[1756839869285,0.69,206.62,206.53,0.68]
[1756839869505,0.69,206.66,206.61,7.92139669]
[1756839869783,0.2,206.67,206.54,0.14216157]
[1756839869784,0.2,206.67,206.65,7.92139669]
[1756839870312,0.89,206.67,206.63,12.760965]
[1756839870483,0.69,206.66,206.63,4.83956831]
[1756839870678,0.2,206.67,206.63,12.760965]
[1756839870910,0.2,206.67,206.65,7.92139669]
[1756839871284,0.2,206.67,206.63,16.93848908]
[1756839871479,0.2,206.67,206.66,7.92139669]
[1756839871710,0.89,206.67,206.63,16.93848908]
[1756839871908,0.89,206.67,206.64,7.92139669]
[1756839872113,0.2,206.67,206.64,7.92139669]
[1756839872429,0.2,206.67,206.65,7.92139669]
[1756839872715,26.0,206.74,206.65,7.92139669]
[1756839872716,12.55139539,206.75,206.66,7.92139669]
[1756839872920,12.55139539,206.75,206.64,24.85906605]
[1756839872921,0.69,206.75,206.71,7.92139669]
[1756839873213,7.92139669,206.72,206.64,4.8393341]
[1756839873511,7.92139669,206.71,206.66,7.92139669]
[1756839873717,0.69,206.72,206.67,7.92139669]
[1756839874079,0.69,206.72,206.68,7.92139669]
[1756839874323,0.69,206.72,206.64,17.61766936]
[1756839874324,8.61139669,206.72,206.66,7.92139669]
[1756839875315,8.61139669,206.72,206.65,12.76049661]
[1756839875316,7.92139669,206.71,206.65,12.76049661]
[1756839875823,7.92139669,206.71,206.66,7.92139669]
[1756839876002,8.61139669,206.72,206.66,7.92139669]
[1756839876201,8.61139669,206.72,206.67,4.83863163]
[1756839876708,0.69,206.71,206.67,4.83863163]
[1756839877012,7.92139669,206.72,206.67,4.83863163]
[1756839877202,0.69,206.71,206.67,4.83863163]
[1756839877623,0.69,206.7,206.67,4.83863163]
[1756839877785,7.92139669,206.72,206.67,4.83863163]
[1756839877982,0.69,206.72,206.67,12.76002832]
[1756839879493,8.61139669,206.71,206.67,4.83863163]
[1756839879693,8.61139669,206.7,206.67,4.83863163]
[1756839879915,0.69,206.69,206.67,4.83863163]
[1756839880090,0.69,206.72,206.67,4.83863163]
[1756839880292,0.69,206.71,206.67,12.76002832]
[1756839880517,0.06,206.75,206.67,12.76002832]
[1756839880518,7.92139669,206.73,206.67,12.76002832]
[1756839880721,0.69,206.74,206.67,24.8566074]
[1756839881015,7.92139669,206.68,206.66,0.03]
[1756839881223,8.63139669,206.67,206.66,0.03]
[1756839881907,7.92139669,206.67,206.66,0.03]
[1756839882501,0.71,206.67,206.66,0.03]
[1756839882707,8.63139669,206.67,206.66,0.03]
[1756839883300,0.71,206.67,206.66,0.03]
[1756839883622,8.63139669,206.67,206.66,0.03]
[1756839884620,0.71,206.72,206.66,7.95139669]
[1756839884799,8.63139669,206.72,206.67,7.92139669]
[1756839885119,8.63139669,206.71,206.66,7.95139669]
[1756839886326,0.06,206.78,206.7,7.92139669]
[1756839886544,0.06,206.78,206.76,7.92139669]
[1756839887008,0.06,206.78,206.77,8.63139669]
[1756839887546,0.06,206.78,206.77,7.92139669]
[1756839887826,0.06,206.78,206.76,7.92139669]
[1756839888201,0.06,206.78,206.71,26.0]
[1756839888406,0.06,206.78,206.77,7.92139669]
[1756839888605,0.06,206.78,206.74,16.92947663]
[1756839888928,0.06,206.78,206.75,7.92139669]
[1756839890199,0.06,206.78,206.74,16.92947663]
[1756839890527,0.06,206.78,206.74,7.92139669]
[1756839891421,8.69139669,206.78,206.73,7.92139669]
[1756839891624,0.06,206.78,206.74,7.92139669]
[1756839892432,8.69139669,206.78,206.74,4.83699332]
[1756839892643,0.06,206.78,206.74,4.83699332]
[1756839892800,0.77,206.78,206.74,4.83699332]
[1756839893000,8.69139669,206.78,206.74,4.83699332]
[1756839893604,0.77,206.78,206.74,12.75839001]
[1756839893832,0.06,206.78,206.74,13.46839001]
[1756839894123,0.06,206.78,206.75,0.71]
[1756839894324,0.06,206.78,206.77,4.83629153]
[1756839895311,0.06,206.78,206.77,12.75768822]
[1756839895521,0.06,206.78,206.77,16.71227639]
[1756839895734,0.06,206.78,206.77,4.83629153]
[1756839896027,1e-08,206.78,206.77,17.42227639]
[1756839898032,1e-08,206.78,206.77,5.54629153]
[1756839898323,1e-08,206.78,206.77,17.42227639]
[1756839898524,1e-08,206.81,206.79,26.0]
[1756839898710,1e-08,206.81,206.8,11.87598486]
[1756839898918,0.71,206.93,206.8,0.71]
[1756839899239,0.71,206.93,206.8,26.71]
[1756839899417,11.87598486,206.91,206.85,11.87598486]
[1756839899627,11.87598486,206.9,206.84,0.71]
[1756839899819,11.87598486,206.9,206.84,12.58598486]
[1756839900132,11.87598486,206.91,206.84,0.71]
[1756839900336,11.87598486,206.88,206.83,4.83488855]
[1756839900636,11.87598486,206.89,206.83,29.50809479]
[1756839901029,0.71,206.91,206.84,11.87598486]
[1756839901217,0.71,206.91,206.86,11.87598486]
[1756839901413,12.58598486,206.91,206.86,11.87598486]
[1756839901734,11.87598486,206.91,206.86,11.87598486]
[1756839901922,26.0,206.94,206.86,11.87598486]
[1756839901923,11.87598486,206.92,206.87,0.71]
[1756839902308,11.87598486,206.92,206.87,12.58598486]
[1756839902533,11.87598486,206.93,206.88,4.83372003]
[1756839902736,12.58598486,206.92,206.88,4.83372003]
[1756839903037,11.87598486,206.89,206.8,26.71]
[1756839903337,26.0,206.94,206.81,17.63374642]
[1756839903538,11.87598486,206.88,206.83,11.87598486]
[1756839903741,11.87598486,206.84,206.81,4.83535612]
[1756839903913,0.71,206.87,206.81,4.83535612]
[1756839904115,11.87598486,206.83,206.81,4.83535612]
[1756839904327,0.71,206.87,206.81,16.92374642]
[1756839904540,11.87598486,206.88,206.83,4.83488855]
[1756839904730,11.87598486,206.9,206.84,12.58598486]
[1756839905223,11.87598486,206.9,206.85,11.87598486]
[1756839905536,11.87598486,206.9,206.84,12.58598486]
[1756839906345,0.71,206.94,206.85,11.87598486]
[1756839906523,11.87598486,206.89,206.85,16.92047376]
[1756839906726,11.87598486,206.87,206.85,16.92047376]
[1756839907025,11.87598486,206.86,206.85,4.83442107]
[1756839907625,11.87598486,206.88,206.85,16.92047376]
[1756839907939,11.87598486,206.87,206.85,4.83442107]
[1756839908129,12.58598486,206.86,206.85,4.83442107]
[1756839908331,12.58598486,206.86,206.8,4.83558994]
[1756839908519,11.87598486,206.84,206.8,4.83558994]
[1756839908715,11.87598486,206.84,206.8,16.92456479]
[1756839909551,0.71,206.87,206.81,0.71]
[1756839909740,11.87598486,206.86,206.81,0.71]
[1756839910243,11.87598486,206.86,206.8,16.92456479]
[1756839910450,13.59559401,206.95,206.8,16.92456479]
[1756839910451,0.91,206.96,206.81,0.71]
[1756839910652,11.87598486,206.95,206.89,11.87598486]
[1756839910818,0.91,206.96,206.89,11.87598486]
[1756839911126,11.87598486,206.93,206.87,0.71]
[1756839911446,11.87598486,206.93,206.87,12.58598486]
[1756839912351,11.87598486,206.93,206.88,11.87598486]
[1756839912546,0.2,206.96,206.9,11.87598486]
[1756839912732,12.07598486,206.96,206.9,11.87598486]
[1756839912935,11.87598486,206.95,206.9,11.87598486]
[1756839913242,0.2,206.96,206.91,12.54598486]
[1756839913542,0.2,206.96,206.89,4.83348639]
[1756839913543,11.87598486,206.92,206.89,4.83348639]
[1756839913744,11.87598486,206.92,206.84,0.67]
[1756839913745,12.59598486,206.91,206.84,0.67]
[1756839914042,0.72,206.91,206.86,11.87598486]
[1756839914246,0.72,206.95,206.88,11.87598486]
[1756839914443,11.87598486,206.94,206.88,11.87598486]
[1756839914644,11.87598486,206.94,206.9,4.83325277]
[1756839914847,12.07598486,206.96,206.9,16.70923763]
[1756839915022,0.2,206.96,206.9,28.79236957]
[1756839915222,0.2,206.96,206.86,40.28]
[1756839915223,11.87598486,206.92,206.86,12.08488749]
[1756839915430,11.87598486,206.89,206.87,4.83395369]
[1756839915646,0.72,206.88,206.87,4.83395369]
[1756839915950,11.87598486,206.9,206.87,4.83395369]
[1756839916334,12.59598486,206.9,206.87,4.83395369]
[1756839916742,0.72,206.89,206.85,16.92047376]
[1756839916927,11.87598486,206.86,206.83,4.8646685]
[1756839917248,11.87598486,206.84,206.83,4.8646685]
[1756839917826,12.59598486,206.84,206.83,0.03]
[1756839919230,0.72,206.88,206.83,0.03]
[1756839919848,0.72,206.88,206.83,11.90598486]
[1756839920434,26.0,206.91,206.85,11.87598486]
[1756839920435,0.72,206.91,206.85,11.87598486]
[1756839920631,11.93598486,206.93,206.87,11.87598486]
[1756839920837,11.93598486,206.93,206.88,28.79400496]
[1756839921034,12.65598486,206.93,206.88,28.79400496]
[1756839921242,0.06,206.93,206.89,0.67]
[1756839921546,0.06,206.93,206.88,28.79400496]
[1756839921547,0.06,206.93,206.88,16.9180201]
[1756839921744,11.93598486,206.93,206.88,28.79400496]
[1756839922346,0.06,206.93,206.9,11.87598486]
[1756839922555,0.06,206.93,206.91,12.54598486]
[1756839922752,0.06,206.93,206.92,4.83278561]
[1756839922949,0.06,206.93,206.92,17.37877047]
[1756839923344,0.06,206.93,206.92,5.50278561]
[1756839923550,0.06,206.93,206.92,4.83278561]
[1756839924870,0.06,206.93,206.9,4.83325277]
[1756839925339,0.06,206.93,206.91,0.67]
[1756839925535,0.06,206.93,206.92,11.87598486]
[1756839925760,0.06,206.93,206.92,12.54598486]
[1756839925957,0.06,206.93,206.9,16.70923763]
[1756839926162,0.06,206.93,206.92,11.87598486]
[1756839926456,0.2,206.96,206.9,16.91638471]
[1756839926753,11.87598486,206.95,206.9,16.91638471]
[1756839926953,0.72,206.95,206.9,16.91638471]
[1756839927253,0.72,206.95,206.9,17.58638471]
[1756839927254,11.87598486,206.95,206.9,17.58638471]
[1756839927429,11.87598486,206.95,206.9,29.46236957]
[1756839927627,0.2,206.96,206.91,0.67]
[1756839927953,13.59559401,207.08,206.95,11.87598486]
[1756839928252,4.74789916,207.11,206.95,11.87598486]
[1756839928253,1e-08,207.0,206.99,11.87598486]
[1756839928435,1e-08,207.0,206.99,56.29325326]
[1756839928632,1e-08,207.0,206.99,56.42999403]
[1756839928840,1e-08,207.0,206.99,74.8567393]
[1756839929043,1e-08,207.0,206.99,128.4567393]
[1756839929243,1e-08,207.0,206.99,142.14106244]
[1756839929757,1e-08,207.0,206.99,162.14106244]
[1756839930148,4.74789916,207.11,207.06,26.0]
[1756839930329,4.74789916,207.11,207.1,11.87598486]
[1756839930537,0.72,207.19,207.1,12.54598486]
[1756839930838,0.72,207.22,207.15,16.7034046]
[1756839931031,0.1,207.25,207.15,17.3734046]
[1756839931032,0.82,207.25,207.15,17.3734046]
[1756839931265,0.82,207.25,207.05,0.14216157]
[1756839931266,23.25081014,207.16,207.05,0.14216157]
[1756839931561,34.406795,207.16,207.1,11.87598486]
[1756839932034,22.53081014,207.16,207.08,40.26]
[1756839932361,11.87598486,207.13,207.08,11.87598486]
[1756839932539,12.59598486,207.12,207.04,0.67]
[1756839932946,12.59598486,207.12,207.0,13.59559401]
[1756839932947,11.87598486,207.1,207.0,13.59559401]
[1756839933148,11.87598486,207.07,207.01,40.26]
[1756839933362,11.87598486,207.07,207.01,11.87598486]
[1756839933538,11.87598486,207.07,207.0,0.67]
[1756839933539,11.87598486,207.07,207.0,40.93]
[1756839933741,0.72,207.07,207.0,11.87598486]
[1756839933944,0.72,207.11,207.04,11.87598486]
[1756839934275,0.72,207.15,207.1,11.87598486]
[1756839934433,0.72,207.15,207.05,0.67]
[1756839934434,11.87598486,207.15,207.09,11.87598486]
[1756839934634,12.59598486,207.14,207.08,11.87598486]
[1756839934972,0.72,207.14,207.09,4.82881838]
[1756839935142,12.59598486,207.14,207.09,16.70480324]
[1756839935348,0.72,207.14,207.09,16.70480324]
[1756839935543,11.87598486,207.13,207.08,16.70501533]
[1756839935745,22.53081014,207.16,207.09,0.67]
[1756839936076,22.53081014,207.16,207.13,11.87598486]
[1756839936270,22.53081014,207.16,207.14,11.87598486]
[1756839936486,0.06,207.15,207.12,26.0]
[1756839936779,0.06,207.15,207.14,53.37598486]
[1756839936958,22.53081014,207.16,207.15,4.82741974]
[1756839937159,0.1,207.25,207.16,13.59559401]
[1756839937383,0.1,207.25,207.22,11.87598486]
[1756839937564,0.1,207.25,207.2,41.48]
[1756839937743,11.50046466,207.26,207.2,53.35598486]
[1756839937948,10.87598486,207.27,207.21,11.87598486]
[1756839938148,0.29166087,207.28,207.2,41.48]
[1756839938347,12.16764573,207.28,207.22,11.87598486]
[1756839938562,0.29166087,207.28,207.22,11.87598486]
[1756839938767,12.16764573,207.28,207.22,11.87598486]
[1756839939070,0.29166087,207.28,207.23,16.701541]
[1756839939273,0.29166087,207.28,207.23,17.371541]
[1756839939466,11.87598486,207.25,207.19,11.87598486]
[1756839939772,11.87598486,207.25,207.18,0.67]
[1756839940070,11.87598486,207.25,207.19,11.87598486]
[1756839940379,11.87598486,207.26,207.2,11.87598486]
[1756839940575,11.87598486,207.24,207.18,0.67]
[1756839940770,11.87598486,207.22,207.15,41.36]
[1756839941084,11.87598486,207.21,207.15,11.87598486]
[1756839941285,0.7,207.2,207.11,46.18835208]
[1756839941484,11.87598486,207.17,207.11,4.82835208]
[1756839941654,11.87598486,207.14,207.11,4.82835208]
[1756839942051,11.87598486,207.13,207.09,4.82881838]
[1756839942363,11.87598486,207.14,207.09,4.82881838]
[1756839942964,11.87598486,207.11,207.07,4.82928478]
[1756839943171,11.87598486,207.1,207.07,4.82928478]
[1756839944871,11.87598486,207.08,207.03,41.22]
[1756839945048,11.87598486,207.07,207.04,4.82998454]
[1756839945681,0.7,207.18,207.06,11.87598486]
[1756839945879,12.57598486,207.18,207.12,11.87598486]
[1756839946185,12.57598486,207.18,207.07,0.68]
[1756839946186,11.87598486,207.2,207.11,0.68]
[1756839946384,11.87598486,207.2,207.14,11.87598486]
[1756839946672,0.7,207.2,207.15,11.87598486]
[1756839946874,0.7,207.22,207.17,11.87598486]
[1756839947062,0.7,207.25,207.18,4.82672072]
[1756839947260,11.87598486,207.22,207.16,16.70298011]
[1756839947467,11.87598486,207.18,207.11,41.16]
[1756839947658,11.87598486,207.16,207.11,11.87598486]
[1756839947863,0.7,207.18,207.11,11.87598486]
[1756839947864,11.87598486,207.17,207.11,12.55598486]
[1756839948170,11.87598486,207.17,207.11,11.87598486]
[1756839948364,11.87598486,207.17,207.08,4.82905157]
[1756839948678,11.87598486,207.17,207.12,11.87598486]
[1756839948978,11.87598486,207.17,207.13,4.82788586]
[1756839949872,11.87598486,207.14,207.08,45.92905157]
[1756839950082,11.87598486,207.2,207.04,4.82998454]
[1756839950083,11.87598486,207.09,207.04,4.82998454]
[1756839950256,11.87598486,207.08,207.04,4.82998454]
[1756839950773,12.07091385,207.17,207.02,11.87598486]
[1756839950774,11.87598486,207.07,207.02,11.87598486]
[1756839950983,11.87598486,207.04,206.99,11.87598486]
[1756839951163,11.87598486,207.04,206.98,52.91598486]
[1756839951164,12.57598486,207.04,206.98,52.91598486]
[1756839951480,11.87598486,207.01,206.96,4.83185156]
[1756839951862,11.87598486,206.97,206.89,4.83348639]
[1756839952053,11.87598486,206.95,206.89,16.70947125]
[1756839952479,11.87598486,206.95,206.89,4.83348639]
[1756839952780,11.87598486,206.95,206.89,16.70947125]
[1756839953458,11.87598486,206.95,206.9,11.87598486]
[1756839953775,11.87598486,206.95,206.93,0.03]
[1756839953974,11.87598486,206.94,206.93,0.03]
[1756839954276,12.57598486,206.95,206.93,0.03]
[1756839954470,11.87598486,206.95,206.93,0.03]
[1756839954674,12.57598486,207.0,206.94,11.87598486]
[1756839954864,12.57598486,207.0,206.95,4.83208504]
[1756839955063,12.57598486,206.99,206.93,4.86236559]
[1756839955267,11.87598486,206.95,206.93,4.86242688]
[1756839955577,0.7,206.98,206.93,4.86242688]
[1756839955578,11.87598486,206.96,206.93,4.86242688]
[1756839956082,11.87598486,206.94,206.93,0.03]
[1756839956455,12.57598486,206.94,206.93,0.03]
[1756839956667,0.7,206.94,206.93,0.03]
[1756839956889,12.57598486,206.94,206.93,0.03]
[1756839957562,8.56199194,206.94,206.88,4.43572003]
[1756839957754,7.86199194,206.91,206.88,4.43572003]
[1756839957954,0.7,206.94,206.88,4.43572003]
[1756839958278,7.86199194,206.92,206.88,4.43572003]
[1756839958992,8.56199194,206.92,206.88,4.43572003]
[1756839959200,7.86199194,206.9,206.86,4.83414923]
[1756839959567,0.7,206.91,206.86,4.83414923]
[1756839959801,8.56199194,206.91,206.86,12.69614117]
[1756839959967,8.56199194,206.9,206.86,4.83414923]
[1756839960476,48.70199194,207.0,206.85,0.1]
[1756839960477,7.86199194,206.87,206.85,0.1]
[1756839960672,7.86199194,206.86,206.85,0.1]
[1756839960867,8.56199194,206.86,206.85,0.1]
[1756839961573,7.86199194,206.86,206.85,0.1]
[1756839962083,7.86199194,206.88,206.85,4.93442107]
[1756839962286,0.7,206.94,206.86,7.86199194]
[1756839962468,7.86199194,206.9,206.85,12.79641301]
[1756839962789,8.56199194,206.89,206.85,4.93442107]
[1756839962965,7.86199194,206.9,206.85,4.93442107]
[1756839963160,0.7,206.96,206.85,12.79641301]
[1756839963365,0.7,206.95,206.85,12.79641301]
[1756839963605,0.7,206.95,206.85,17.70047376]
[1756839963892,7.86199194,206.93,206.85,17.70047376]
[1756839964096,7.86199194,206.93,206.87,7.86199194]
[1756839964480,7.86199194,206.95,206.89,7.86199194]
[1756839964678,7.86199194,206.91,206.86,7.86199194]
[1756839964988,7.86199194,206.92,206.87,4.83395369]
[1756839965201,7.86199194,206.92,206.87,12.69594563]
[1756839965488,8.56199194,206.94,206.88,7.86199194]
[1756839965669,7.86199194,206.95,206.89,7.86199194]
[1756839965872,0.7,206.97,206.92,7.86199194]
[1756839965873,8.56199194,206.97,206.92,7.86199194]
[1756839966271,8.56199194,206.97,206.88,0.68]
[1756839966272,0.06,207.12,206.96,7.86199194]
[1756839966584,0.06,207.12,206.91,40.7]
[1756839966585,0.7,207.1,206.97,0.68]
[1756839966897,7.86199194,207.06,207.0,7.86199194]
[1756839967084,7.86199194,207.07,207.01,12.69267644]
[1756839967273,0.7,207.1,207.03,7.86199194]
[1756839967471,0.7,207.1,207.01,4.8306845]
[1756839967472,7.86199194,207.1,207.05,7.86199194]
[1756839967775,0.06,207.12,207.02,8.54199194]
[1756839968093,7.86199194,207.09,207.04,7.86199194]
[1756839968300,7.86199194,207.11,207.05,7.86199194]
[1756839968606,0.76,207.12,207.08,7.86199194]
[1756839968607,0.06,207.12,207.08,7.86199194]
[1756839968774,0.06,207.12,207.05,0.68]